[Event "5th Ordu Open 2019"]
[Site "Ordu"]
[Date "2019.05.05"]
[Round "9.13"]
[White "Aydin, Aytac"]
[Black "Sahinkaya, Dogus"]
[Result "0-1"]
[ECO "E11"]
[WhiteElo "1473"]
[BlackElo "1518"]
[Annotator "NA RC"]
[PlyCount "97"]
[EventDate "2019.04.29"]
[EventType "swiss"]
[EventCountry "TUR"]
[SourceTitle "playchess.com"]
[Source "ChessBase"]
[SourceQuality "1"]
[TimeControl "5400+30"]

1. d4 {[%emt 0:30:30]} Nf6 {[%emt 0:30:30]} 2. Nf3 {[%emt 0:00:30]} d5 {[%emt 0:00:00]} 3. c4 {[%emt 0:00:30]} e6 {[%emt 0:00:00]} 4. g3 {[%emt 0:00:30]} Bb4+ {[%emt 0:01:30]} 5. Bd2 {[%emt 0:01:30]} Be7 {[%emt 0:02:30]} 6. Bg2 {[%emt 0:01:30]} O-O {[%emt 0:00:30]} 7. O-O {[%emt 0:01:30]} Nc6 {[%emt 0:03:30]} 8. Qc2 {[%emt 0:02:30]} Ne4 {[%emt 0:04:30]} 9. Rd1 {[%emt 0:04:30]} Bf6 {[%emt 0:02:30]} 10. Be3 {[%emt 0:01:30]} Qe7 {[%emt 0:04:30]} 11. Nbd2 {[%emt 0:04:30]} Nb4 {[%emt 0:02:30]} 12. Qb3 {[%emt 0:00:30]} dxc4 {[%emt 0:04:30]} 13. Nxc4 {[%emt 0:04:30]} Nd5 {[%emt 0:01:30]} 14. Bd2 {[%emt 0:07:30]} c5 {[%emt 0:03:30]} 15. Nfe5 {[%emt 0:06:30]} Nxd2 {[%emt 0:02:30]} 16. Rxd2 {[%emt 0:01:30]} cxd4 {[%emt 0:04:30]} 17. Rxd4 {[%emt 0:02:30]} Bxe5 {[%emt 0:08:30]} 18. Nxe5 {[%emt 0:00:30]} Qf6 {[%emt 0:02:26]} 19. Nf3 {[%emt 0:01:30]} Rb8 {[%emt 0:03:34]} 20. Rad1 {[%emt 0:01:30]} b6 {[%emt 0:01:06]} 21. e4 {[%emt 0:01:30]} Ne7 {[%emt 0:00:24]} 22. e5 {[%emt 0:03:30]} Qh6 {[%emt 0:01:08]} 23. Rd8 {[%emt 0:01:53]} Bb7 {[%emt 0:00:58]} 24. Rxf8+ {[%emt 0:00:43]} Rxf8 {[%emt 0:00:26]} 25. Rd7 {[%emt 0:03:09]} Qc1+ {[%emt 0:01:39]} 26. Qd1 {[%emt 0:00:07]} Qxd1+ {[%emt 0:00:58]} 27. Rxd1 {[%emt 0:00:01]} Bd5 {[%emt 0:01:03]} 28. Ng5 {[%emt 0:00:00]} Rc8 {[%emt 0:00:47]} 29. Bxd5 {[%emt 0:01:58]} Nxd5 {[%emt 0:00:02]} 30. Rd2 {[%emt 0:00:21]} a5 {[%emt 0:02:05]} 31. Nh3 {[%emt 0:00:50]} h6 {[%emt 0:00:36]} 32. f4 {[%emt 0:01:54]} Rc4 {[%emt 0:01:21]} 33. Nf2 {[%emt 0:04:04]} Rc1+ {[%emt 0:02:25]} 34. Kg2 {[%emt 0:00:07]} b5 {[%emt 0:01:55]} 35. Nd1 {[%emt 0:00:40]} Rxd1 {[%emt 0:00:30]} 36. Rxd1 {[%emt 0:00:30]} Ne3+ {[%emt 0:00:30]} 37. Kf3 {[%emt 0:00:30]} Nxd1 {[%emt 0:00:00]} 38. b3 {[%emt 0:01:07]} Kf8 {[%emt 0:01:50]} 39. g4 {[%emt 0:00:44]} Ke7 {[%emt 0:00:38]} 40. a3 {[%emt 0:00:12]} Nc3 {[%emt 0:00:20]} 41. Ke3 {[%emt 0:00:11]} b4 {[%emt 0:00:14]} 42. axb4 {[%emt 0:00:47]} axb4 {[%emt 0:00:30]} 43. Kd3 {[%emt 0:00:30]} Kd7 {[%emt 0:00:30]} 44. f5 {[%emt 0:00:30]} Kc6 {[%emt 0:00:30]} 45. Kc4 {[%emt 0:00:30]} Nd5 {[%emt 0:00:30]} 46. fxe6 {[%emt 0:00:30]} fxe6 {[%emt 0:00:30]} 47. h3 {[%emt 0:00:30]} g5 {[%emt 0:00:30]} 48. Kd4 {[%emt 0:00:30]} Kb5 {[%emt 0:00:30]} 49. Ke4 {[%emt 0:00:30]} 0-1

[Event "5th Ordu Open 2019"]
[Site "Ordu"]
[Date "2019.05.05"]
[Round "9.14"]
[White "Kvikvinia, Teimuraz"]
[Black "Haciyusufoglu, Cagri"]
[Result "1-0"]
[ECO "B33"]
[WhiteElo "1592"]
[BlackElo "1563"]
[Annotator "NA RC"]
[PlyCount "87"]
[EventDate "2019.04.29"]
[EventType "swiss"]
[EventCountry "TUR"]
[SourceTitle "playchess.com"]
[Source "ChessBase"]
[SourceQuality "1"]
[TimeControl "5400+30"]

1. e4 {[%emt 0:30:30]} c5 {[%emt 0:30:30]} 2. Nf3 {[%emt 0:00:30]} Nc6 {[%emt 0:00:30]} 3. d4 {[%emt 0:00:30]} cxd4 {[%emt 0:00:30]} 4. Nxd4 {[%emt 0:00:30]} Nf6 {[%emt 0:00:30]} 5. Nc3 {[%emt 0:00:00]} e5 {[%emt 0:00:00]} 6. Ndb5 {[%emt 0:00:00]} d6 {[%emt 0:00:00]} 7. Bg5 {[%emt 0:00:00]} a6 {[%emt 0:00:00]} 8. Na3 {[%emt 1:02:00]} b5 {[%emt 0:00:00]} 9. Nd5 {[%emt 0:00:30]} Be7 {[%emt 0:00:00]} 10. Bxf6 {[%emt 0:00:30]} Bxf6 {[%emt 0:00:00]} 11. c3 {[%emt 0:00:00]} Bg5 {[%emt 0:00:00]} 12. Nc2 {[%emt 0:00:00]} Rb8 {[%emt 0:00:00]} 13. a4 {[%emt 0:00:00]} bxa4 {[%emt 0:08:30]} 14. Ncb4 {[%emt 0:00:00]} Nxb4 {[%emt 0:01:30]} 15. Nxb4 {[%emt 0:00:00]} Rxb4 {[%emt 0:30:30]} 16. cxb4 {[%emt 0:00:00]} Qb6 {[%emt 0:01:30]} 17. Qxa4+ {[%emt 0:00:00]} Bd7 {[%emt 0:00:00]} 18. Qb3 {[%emt 0:00:00]} Qd4 {[%emt 0:05:28]} 19. Bd3 {[%emt 0:00:00]} Bb5 {[%emt 0:03:01]} 20. Bxb5+ {[%emt 0:00:00]} axb5 {[%emt 0:00:24]} 21. O-O {[%emt 0:00:00]} Qxe4 {[%emt 0:02:14]} 22. Rfd1 {[%emt 0:00:00]} O-O {[%emt 0:01:13]} 23. Rxd6 {[%emt 0:00:00]} Be7 {[%emt 0:00:29]} 24. Rd5 {[%emt 0:00:00]} Bxb4 {[%emt 0:01:23]} 25. Rxb5 {[%emt 0:00:00]} Be7 {[%emt 0:03:52]} 26. Rb8 {[%emt 0:00:00]} g6 {[%emt 0:00:57]} 27. Rxf8+ {[%emt 0:00:00]} Kxf8 {[%emt 0:00:43]} 28. h3 {[%emt 0:00:00]} Bc5 {[%emt 0:00:44]} 29. Rf1 {[%emt 0:00:00]} Kg7 {[%emt 0:01:25]} 30. Qc3 {[%emt 0:00:00]} Bd4 {[%emt 0:01:49]} 31. Qd2 {[%emt 0:00:00]} Qb7 {[%emt 0:00:51]} 32. b4 {[%emt 0:00:00]} Qb5 {[%emt 0:01:55]} 33. Rb1 {[%emt 0:00:00]} Bc5 {[%emt 0:01:23]} 34. Qe1 {[%emt 0:00:00]} Bd4 {[%emt 0:00:30]} 35. Qf1 {[%emt 0:00:00]} Qb6 {[%emt 0:00:12]} 36. b5 {[%emt 0:00:00]} Qa7 {[%emt 0:04:15]} 37. Rc1 {[%emt 0:00:00]} h5 {[%emt 0:00:21]} 38. Rc6 {[%emt 0:00:00]} Qa4 {[%emt 0:00:35]} 39. Rc7 {[%emt 0:00:00]} Bb6 {[%emt 0:00:50]} 40. Rc6 {[%emt 0:00:00]} Qd4 {[%emt 0:00:18]} 41. Qe2 {[%emt 0:00:00]} e4 {[%emt 0:01:11]} 42. g3 {[%emt 0:00:00]} Qa1+ {[%emt 0:00:30]} 43. Kg2 {[%emt 0:00:00]} Qd4 {[%emt 0:00:25]} 44. Qe3 {[%emt 0:00:00]} 1-0

[Event "5th Ordu Open 2019"]
[Site "Ordu"]
[Date "2019.05.05"]
[Round "9.16"]
[White "Didbaridze, Meri"]
[Black "Akbarpourmiri, Massoumeh"]
[Result "0-1"]
[ECO "A45"]
[WhiteElo "1200"]
[BlackElo "1247"]
[Annotator "NA"]
[PlyCount "116"]
[EventDate "2019.04.29"]
[EventType "swiss"]
[EventCountry "TUR"]
[SourceTitle "playchess.com"]
[Source "ChessBase"]
[SourceQuality "1"]
[TimeControl "5400+30"]

1. d4 {[%emt 0:30:30]} Nf6 {[%emt 0:30:30]} 2. Bf4 {[%emt 0:00:00]} g6 {[%emt 0:00:30]} 3. c3 {[%emt 0:00:00]} Bg7 {[%emt 0:00:30]} 4. e3 {[%emt 0:00:00]} d5 {[%emt 0:00:00]} 5. Nf3 {[%emt 0:00:00]} O-O {[%emt 0:00:00]} 6. Be2 {[%emt 0:00:30]} Bf5 {[%emt 0:00:00]} 7. Nbd2 {[%emt 0:01:30]} Nbd7 {[%emt 0:00:00]} 8. O-O {[%emt 0:01:30]} c5 {[%emt 0:00:30]} 9. Ne5 {[%emt 0:02:30]} Nxe5 {[%emt 0:04:30]} 10. Bxe5 {[%emt 0:00:30]} Nd7 {[%emt 0:00:30]} 11. Bxg7 {[%emt 0:00:30]} Kxg7 {[%emt 0:00:00]} 12. Nf3 {[%emt 0:01:30]} c4 {[%emt 0:01:00]} 13. Nh4 {[%emt 0:01:30]} Be6 {[%emt 0:01:30]} 14. Bg4 {[%emt 0:00:30]} Bxg4 {[%emt 0:00:30]} 15. Qxg4 {[%emt 0:00:30]} Nf6 {[%emt 0:00:30]} 16. Qe2 {[%emt 0:05:30]} e6 {[%emt 0:01:30]} 17. Nf3 {[%emt 0:00:30]} b5 {[%emt 0:00:30]} 18. Qc2 {[%emt 0:05:30]} Qb6 {[%emt 0:02:30]} 19. a3 {[%emt 0:05:30]} a5 {[%emt 0:01:30]} 20. Nd2 {[%emt 0:06:30]} b4 {[%emt 0:00:30]} 21. h3 {[%emt 0:01:30]} Rfb8 {[%emt 0:01:30]} 22. Rfb1 {[%emt 0:03:30]} b3 {[%emt 0:01:30]} 23. Qd1 {[%emt 0:00:30]} Qc6 {[%emt 0:02:30]} 24. Qe2 {[%emt 0:02:30]} Re8 {[%emt 0:00:30]} 25. Re1 {[%emt 0:01:30]} e5 {[%emt 0:02:30]} 26. Qf3 {[%emt 0:03:30]} exd4 {[%emt 0:01:30]} 27. exd4 {[%emt 0:00:00]} Rxe1+ {[%emt 0:01:30]} 28. Rxe1 {[%emt 0:00:00]} Re8 {[%emt 0:00:00]} 29. Re3 {[%emt 0:00:30]} Rxe3 {[%emt 0:01:00]} 30. Qxe3 {[%emt 0:00:30]} Qe6 {[%emt 0:00:30]} 31. Nf3 {[%emt 0:05:30]} Qxe3 {[%emt 0:00:30]} 32. fxe3 {[%emt 0:00:30]} Nd7 {[%emt 0:00:00]} 33. Nd2 {[%emt 0:04:18]} f5 {[%emt 0:01:00]} 34. Kf2 {[%emt 0:00:44]} Nb6 {[%emt 0:00:00]} 35. Kf3 {[%emt 0:02:06]} Na4 {[%emt 0:00:00]} 36. Kf4 {[%emt 0:03:09]} Kf6 {[%emt 0:00:30]} 37. Nb1 {[%emt 0:00:55]} Nxb2 {[%emt 0:00:00]} 38. g3 {[%emt 0:01:03]} Nd3+ {[%emt 0:00:00]} 39. Kf3 {[%emt 0:00:00]} Ne1+ {[%emt 0:00:30]} 40. Ke2 {[%emt 0:00:08]} Nc2 {[%emt 0:00:30]} 41. Kf3 {[%emt 0:01:04]} h5 {[%emt 0:00:30]} 42. h4 {[%emt 0:00:45]} g5 {[%emt 0:01:30]} 43. Kf2 {[%emt 0:01:29]} a4 {[%emt 0:02:30]} 44. Ke2 {[%emt 0:00:49]} Na1 {[%emt 0:04:30]} 45. Kf3 {[%emt 0:01:53]} b2 {[%emt 0:00:30]} 46. Ke2 {[%emt 0:00:30]} Nb3 {[%emt 0:00:30]} 47. Kd1 {[%emt 0:00:17]} gxh4 {[%emt 0:00:30]} 48. gxh4 {[%emt 0:00:18]} f4 {[%emt 0:00:30]} 49. Ke2 {[%emt 0:01:00]} Kf5 {[%emt 0:00:30]} 50. Kf3 {[%emt 0:02:06]} fxe3 {[%emt 0:00:00]} 51. Kxe3 {[%emt 0:00:22]} Kg4 {[%emt 0:00:00]} 52. Kf2 {[%emt 0:00:44]} Kxh4 {[%emt 0:00:30]} 53. Kf3 {[%emt 0:00:14]} Kg5 {[%emt 0:00:30]} 54. Kg3 {[%emt 0:00:00]} Kf5 {[%emt 0:00:30]} 55. Kf3 {[%emt 0:02:35]} h4 {[%emt 0:00:30]} 56. Kg2 {[%emt 0:00:30]} Ke4 {[%emt 0:00:00]} 57. Kh3 {[%emt 0:00:00]} Kd3 {[%emt 0:00:00]} 58. Kxh4 {[%emt 0:00:16]} Kc2 {[%emt 0:00:00]} 0-1

[Event "5th Ordu Open 2019"]
[Site "Ordu"]
[Date "2019.05.05"]
[Round "9.17"]
[White "Sariali, Engin"]
[Black "Sen, Kamil"]
[Result "0-1"]
[ECO "B90"]
[WhiteElo "1277"]
[BlackElo "1205"]
[Annotator "NA RC"]
[PlyCount "162"]
[EventDate "2019.04.29"]
[EventType "swiss"]
[EventCountry "TUR"]
[SourceTitle "playchess.com"]
[Source "ChessBase"]
[SourceQuality "1"]
[TimeControl "5400+30"]

1. e4 {[%emt 0:30:30]} c5 {[%emt 0:30:30]} 2. Nf3 {[%emt 0:00:30]} d6 {[%emt 0:00:00]} 3. d4 {[%emt 0:00:30]} cxd4 {[%emt 0:00:00]} 4. Nxd4 {[%emt 0:00:30]} Nf6 {[%emt 0:00:30]} 5. Nc3 {[%emt 0:00:30]} a6 {[%emt 0:00:00]} 6. Bd3 {[%emt 0:02:30]} Bd7 {[%emt 0:00:00]} 7. f4 {[%emt 0:01:30]} Qc7 {[%emt 0:00:30]} 8. Nf3 {[%emt 0:03:30]} Bg4 {[%emt 0:00:30]} 9. h3 {[%emt 0:01:30]} Bxf3 {[%emt 0:00:30]} 10. Qxf3 {[%emt 0:00:30]} Nbd7 {[%emt 0:00:30]} 11. g4 {[%emt 0:01:30]} Ng8 {[%emt 0:02:30]} 12. g5 {[%emt 0:04:30]} g6 {[%emt 0:01:30]} 13. Bd2 {[%emt 0:02:30]} Bg7 {[%emt 0:00:00]} 14. h4 {[%emt 0:03:30]} h5 {[%emt 0:01:00]} 15. O-O-O {[%emt 0:02:30]} e6 {[%emt 0:01:30]} 16. Rhe1 {[%emt 0:02:30]} Ne7 {[%emt 0:00:00]} 17. Qh3 {[%emt 0:01:30]} Nc5 {[%emt 0:01:00]} 18. f5 {[%emt 0:02:30]} Bf8 {[%emt 0:04:30]} 19. f6 {[%emt 0:04:30]} Nc6 {[%emt 0:00:30]} 20. Bf4 {[%emt 0:02:30]} Ne5 {[%emt 0:01:30]} 21. Bxe5 {[%emt 0:02:30]} dxe5 {[%emt 0:00:00]} 22. Re3 {[%emt 0:02:30]} Nd7 {[%emt 0:03:00]} 23. Bf1 {[%emt 0:05:30]} Bc5 {[%emt 0:07:30]} 24. Red3 {[%emt 0:01:30]} Nb6 {[%emt 0:00:30]} 25. Qh2 {[%emt 0:01:00]} O-O {[%emt 0:03:30]} 26. Ne2 {[%emt 0:02:23]} Qb8 {[%emt 0:04:30]} 27. Ng3 {[%emt 0:01:20]} Bd4 {[%emt 0:00:30]} 28. Be2 {[%emt 0:01:00]} Rc8 {[%emt 0:02:30]} 29. Kb1 {[%emt 0:03:54]} Nc4 {[%emt 0:01:30]} 30. c3 {[%emt 0:01:13]} Be3 {[%emt 0:00:30]} 31. Nf1 {[%emt 0:05:10]} Bf4 {[%emt 0:00:30]} 32. Qg1 {[%emt 0:00:45]} b5 {[%emt 0:00:30]} 33. Bxh5 {[%emt 0:01:05]} Qb7 {[%emt 0:02:30]} 34. Bf3 {[%emt 0:00:44]} Qa7 {[%emt 0:02:30]} 35. Qg2 {[%emt 0:01:12]} b4 {[%emt 0:00:30]} 36. h5 {[%emt 0:01:18]} bxc3 {[%emt 0:00:30]} 37. Rxc3 {[%emt 0:00:20]} Nxb2 {[%emt 0:00:30]} 38. Qxb2 {[%emt 0:01:04]} Rxc3 {[%emt 0:01:30]} 39. Qxc3 {[%emt 0:00:30]} Qb7+ {[%emt 0:00:30]} 40. Qb3 {[%emt 0:00:30]} Qc7 {[%emt 0:00:30]} 41. Ka1 {[%emt 0:00:30]} Rb8 {[%emt 0:00:30]} 42. Qd3 {[%emt 0:00:30]} Bxg5 {[%emt 0:00:30]} 43. hxg6 {[%emt 0:00:30]} Bxf6 {[%emt 0:00:30]} 44. gxf7+ {[%emt 0:00:30]} Kg7 {[%emt 0:00:30]} 45. Bg4 {[%emt 0:00:30]} Rd8 {[%emt 0:00:30]} 46. f8=Q+ {[%emt 0:00:30]} Kxf8 {[%emt 0:00:30]} 47. Qxd8+ {[%emt 0:00:30]} Bxd8 {[%emt 0:00:30]} 48. Nd2 {[%emt 0:00:30]} Qc3+ {[%emt 0:00:30]} 49. Kb1 {[%emt 0:00:30]} Qd3+ {[%emt 0:00:30]} 50. Kb2 {[%emt 0:00:30]} Ke7 {[%emt 0:00:30]} 51. Nb3 {[%emt 0:00:30]} Qe3 {[%emt 0:02:30]} 52. Rd2 {[%emt 0:02:25]} Bb6 {[%emt 0:00:00]} 53. Bd1 {[%emt 0:01:04]} Bd4+ {[%emt 0:01:00]} 54. Kb1 {[%emt 0:01:22]} Qxe4+ {[%emt 0:00:00]} 55. Bc2 {[%emt 0:00:00]} Qe1+ {[%emt 0:01:00]} 56. Rd1 {[%emt 0:00:54]} Qc3 {[%emt 0:00:30]} 57. Nxd4 {[%emt 0:00:18]} exd4 {[%emt 0:00:00]} 58. Rd3 {[%emt 0:00:15]} Qc5 {[%emt 0:00:00]} 59. Bb3 {[%emt 0:00:33]} e5 {[%emt 0:01:30]} 60. Rh3 {[%emt 0:00:48]} Qa5 {[%emt 0:00:30]} 61. Rh7+ {[%emt 0:00:47]} Kf6 {[%emt 0:00:00]} 62. Rh6+ {[%emt 0:00:09]} Kg5 {[%emt 0:00:00]} 63. Re6 {[%emt 0:00:11]} Kf4 {[%emt 0:00:30]} 64. Rf6+ {[%emt 0:00:56]} Ke3 {[%emt 0:00:00]} 65. Rf5 {[%emt 0:00:35]} d3 {[%emt 0:02:00]} 66. Kb2 {[%emt 0:00:30]} Qd2+ {[%emt 0:00:30]} 67. Ka3 {[%emt 0:00:30]} Qc3 {[%emt 0:01:30]} 68. Ka4 {[%emt 0:00:16]} a5 {[%emt 0:00:30]} 69. Kb5 {[%emt 0:00:22]} e4 {[%emt 0:00:30]} 70. Rh5 {[%emt 0:00:37]} Kf4 {[%emt 0:00:30]} 71. Rh4+ {[%emt 0:00:42]} Kf3 {[%emt 0:00:30]} 72. Bd1+ {[%emt 0:00:00]} Ke3 {[%emt 0:00:30]} 73. Bb3 {[%emt 0:00:03]} Qb4+ {[%emt 0:00:30]} 74. Kc6 {[%emt 0:00:49]} d2 {[%emt 0:00:30]} 75. Rh3+ {[%emt 0:00:03]} Kd4 {[%emt 0:00:30]} 76. Bd1 {[%emt 0:00:31]} Qb1 {[%emt 0:01:30]} 77. Bb3 {[%emt 0:00:11]} Qxb3 {[%emt 0:01:30]} 78. Rxb3 {[%emt 0:00:55]} d1=Q {[%emt 0:00:30]} 79. Kb5 {[%emt 0:00:12]} Qc2 {[%emt 0:00:30]} 80. Ra3 {[%emt 0:00:30]} Qc5+ {[%emt 0:01:30]} 81. Ka4 {[%emt 0:00:30]} Qb4# {[%emt 0:00:30]} 0-1